[Event "SVK Amateur-ch 2020"]
[Site "Topolcany"]
[Date "2020.07.13"]
[Round "7.23"]
[White "Belus, Benjamin"]
[Black "Nikanova, Ekaterina"]
[Result "0-1"]
[ECO "A36"]
[WhiteElo "1909"]
[BlackElo "2116"]
[Annotator "RC"]
[PlyCount "106"]
[EventDate "2020.07.10"]
[EventType "swiss"]
[EventCountry "SVK"]
[SourceTitle "playchess.com"]
[Source "ChessBase"]
[SourceQuality "1"]
[TimeControl "3600+30"]

1. c4 {[%emt 0:02:19]} c5 {[%emt 0:00:00]} 2. g3 {[%emt 0:00:04]} Nc6 {[%emt 0:00:21]} 3. Bg2 {[%emt 0:00:02]} g6 {[%emt 0:00:10]} 4. Nc3 {[%emt 0:00:11]} Bg7 {[%emt 0:00:04]} 5. e3 {[%emt 0:01:53]} e5 {[%emt 0:00:36]} 6. Nge2 {[%emt 0:00:21]} Nge7 {[%emt 0:00:29]} 7. O-O {[%emt 0:00:24]} d6 {[%emt 0:00:12]} 8. b3 {[%emt 0:01:41]} O-O {[%emt 0:02:29]} 9. Bb2 {[%emt 0:00:06]} Rb8 {[%emt 0:02:37]} 10. d3 {[%emt 0:10:50]} a6 {[%emt 0:00:53]} 11. Nd5 {[%emt 0:03:37]} b5 {[%emt 0:05:43]} 12. Nec3 {[%emt 0:01:04]} Be6 {[%emt 0:12:01]} 13. e4 {[%emt 0:08:04]} Qd7 {[%emt 0:04:01]} 14. Nxe7+ {[%emt 0:01:00]} Qxe7 {[%emt 0:02:22]} 15. Nd5 {[%emt 0:00:04]} Qd7 {[%emt 0:00:17]} 16. Rc1 {[%emt 0:01:29]} Nd4 {[%emt 0:08:12]} 17. f3 {[%emt 0:03:42]} bxc4 {[%emt 0:02:33]} 18. dxc4 {[%emt 0:00:08]} Bxd5 {[%emt 0:00:30]} 19. exd5 {[%emt 0:00:24]} a5 {[%emt 0:00:25]} 20. Bc3 {[%emt 0:02:48]} Ra8 {[%emt 0:01:35]} 21. h4 {[%emt 0:01:33]} Rfb8 {[%emt 0:03:04]} 22. Rb1 {[%emt 0:00:14]} Qa7 {[%emt 0:01:36]} 23. Kh2 {[%emt 0:02:19]} Rb7 {[%emt 0:02:42]} 24. Qd2 {[%emt 0:00:21]} Qa6 {[%emt 0:03:31]} 25. Qd3 {[%emt 0:02:08]} Rab8 {[%emt 0:00:57]} 26. Bd2 {[%emt 0:17:53]} Rf8 {[%emt 0:08:16]} 27. f4 {[%emt 0:00:34]} f5 {[%emt 0:00:54]} 28. fxe5 {[%emt 0:00:49]} dxe5 {[%emt 0:00:30]} 29. h5 {[%emt 0:00:15]} gxh5 {[%emt 0:02:36]} 30. Rh1 {[%emt 0:01:39]} e4 {[%emt 0:00:44]} 31. Qe3 {[%emt 0:00:41]} Qg6 {[%emt 0:02:01]} 32. Qg5 {[%emt 0:01:39]} Bf6 {[%emt 0:01:26]} 33. Qxg6+ {[%emt 0:01:12]} hxg6 {[%emt 0:00:01]} 34. Bxa5 {[%emt 0:00:13]} Ra8 {[%emt 0:01:19]} 35. b4 {[%emt 0:01:28]} cxb4 {[%emt 0:00:06]} 36. Rxb4 {[%emt 0:00:03]} Rxb4 {[%emt 0:00:12]} 37. Bxb4 {[%emt 0:00:02]} Rxa2 {[%emt 0:00:06]} 38. Rf1 {[%emt 0:00:54]} Rb2 {[%emt 0:00:34]} 39. Ba3 {[%emt 0:01:00]} Ra2 {[%emt 0:00:35]} 40. Bd6 {[%emt 0:00:14]} e3 {[%emt 0:01:15]} 41. Kh1 {[%emt 0:00:45]} e2 {[%emt 0:00:40]} 42. Re1 {[%emt 0:00:08]} Rd2 {[%emt 0:00:38]} 43. Bb4 {[%emt 0:00:45]} Rd1 {[%emt 0:00:05]} 44. Kh2 {[%emt 0:01:06]} Rxe1 {[%emt 0:00:58]} 45. Bxe1 {[%emt 0:00:03]} Nc2 {[%emt 0:00:02]} 46. Bd2 {[%emt 0:00:20]} e1=Q {[%emt 0:00:16]} 47. Bxe1 {[%emt 0:00:01]} Nxe1 {[%emt 0:00:01]} 48. c5 {[%emt 0:01:47]} Nxg2 {[%emt 0:00:19]} 49. Kxg2 {[%emt 0:00:03]} Bd4 {[%emt 0:00:16]} 50. c6 {[%emt 0:00:07]} Be5 {[%emt 0:00:06]} 51. Kh3 {[%emt 0:00:22]} g5 {[%emt 0:00:08]} 52. Kg2 {[%emt 0:00:46]} Kf8 {[%emt 0:00:15]} 53. Kf2 {[%emt 0:00:02]} Ke7 0-1

[Event "SVK Amateur-ch 2020"]
[Site "Topolcany"]
[Date "2020.07.13"]
[Round "7.31"]
[White "Skreko, Igor"]
[Black "Giertli, Vladimir"]
[Result "0-1"]
[ECO "A34"]
[WhiteElo "1787"]
[BlackElo "2023"]
[Annotator "ChessBase"]
[PlyCount "46"]
[EventDate "2020.07.10"]
[EventType "swiss"]
[EventCountry "SVK"]
[SourceTitle "playchess.com"]
[Source "ChessBase"]
[SourceQuality "1"]
[TimeControl "3600+30"]

1. c4 {[%emt 0:00:00]} Nf6 {[%emt 0:00:00]} 2. Nc3 {[%emt 0:00:00]} c5 {[%emt 0:00:00]} 3. g3 {[%emt 0:00:00]} Nc6 {[%emt 0:00:17]} 4. Bg2 {[%emt 0:00:00]} g6 {[%emt 0:00:10]} 5. Rb1 {[%emt 0:00:29]} Bg7 {[%emt 0:00:12]} 6. a3 {[%emt 0:00:25]} O-O {[%emt 0:00:59]} 7. b4 {[%emt 0:01:27]} cxb4 {[%emt 0:01:33]} 8. axb4 {[%emt 0:00:08]} d6 {[%emt 0:00:26]} 9. d3 {[%emt 0:02:10]} a5 {[%emt 0:12:53]} 10. bxa5 {[%emt 0:03:16]} Qxa5 {[%emt 0:00:04]} 11. Bd2 {[%emt 0:00:13]} Ng4 {[%emt 0:03:04]} 12. Nd5 {[%emt 0:02:07]} Qc5 {[%emt 0:01:23]} 13. e3 {[%emt 0:02:44]} Ra3 {[%emt 0:04:50]} 14. d4 {[%emt 0:06:09]} Qxc4 {[%emt 0:02:26]} 15. Nb6 {[%emt 0:00:55]} Qa2 {[%emt 0:00:23]} 16. Nxc8 {[%emt 0:00:53]} Rxc8 {[%emt 0:00:01]} 17. h3 {[%emt 0:03:25]} Nf6 {[%emt 0:01:02]} 18. Rxb7 {[%emt 0:02:50]} e5 {[%emt 0:04:33]} 19. Bxc6 {[%emt 0:07:10]} Rxc6 {[%emt 0:00:18]} 20. dxe5 {[%emt 0:00:30]} Ne4 {[%emt 0:01:29]} 21. Nf3 {[%emt 0:03:41]} Rd3 {[%emt 0:05:59]} 22. Qe2 {[%emt 0:05:51]} Rxd2 {[%emt 0:02:36]} 23. Rb8+ {[%emt 0:03:29]} Bf8 {[%emt 0:00:10]} 0-1

[Event "SVK Amateur-ch 2020"]
[Site "Topolcany"]
[Date "2020.07.13"]
[Round "7.32"]
[White "Nikel, Rastislav"]
[Black "Franko, Ondrej"]
[Result "0-1"]
[ECO "D06"]
[WhiteElo "1982"]
[BlackElo "1968"]
[Annotator "ChessBase"]
[PlyCount "74"]
[EventDate "2020.07.10"]
[EventType "swiss"]
[EventCountry "SVK"]
[SourceTitle "playchess.com"]
[Source "ChessBase"]
[SourceQuality "1"]
[TimeControl "3600+30"]

1. d4 {[%emt 0:00:00]} d5 {[%emt 0:00:00]} 2. c4 {[%emt 0:00:00]} Bf5 {[%emt 0:00:00]} 3. Nc3 {[%emt 0:00:00]} e6 {[%emt 0:00:00]} 4. Nf3 {[%emt 0:00:34]} c6 {[%emt 0:00:27]} 5. Ne5 {[%emt 0:00:45]} Nd7 {[%emt 0:02:08]} 6. g4 {[%emt 0:02:29]} Bg6 {[%emt 0:07:22]} 7. h4 {[%emt 0:02:07]} Nxe5 {[%emt 0:00:16]} 8. dxe5 {[%emt 0:00:11]} h5 {[%emt 0:01:13]} 9. Bg5 {[%emt 0:00:55]} Be7 {[%emt 0:01:53]} 10. Bxe7 {[%emt 0:00:59]} Nxe7 {[%emt 0:00:13]} 11. g5 {[%emt 0:01:17]} d4 {[%emt 0:09:16]} 12. Nb1 {[%emt 0:01:25]} Qa5+ {[%emt 0:04:42]} 13. Nd2 {[%emt 0:04:59]} Qxe5 {[%emt 0:01:15]} 14. Qb3 {[%emt 0:01:51]} Qc7 {[%emt 0:00:47]} 15. Bg2 {[%emt 0:00:13]} O-O {[%emt 0:01:52]} 16. O-O-O {[%emt 0:00:57]} Rfd8 {[%emt 0:02:16]} 17. Nf3 {[%emt 0:03:27]} c5 {[%emt 0:03:19]} 18. e3 {[%emt 0:00:11]} dxe3 {[%emt 0:05:36]} 19. fxe3 {[%emt 0:00:41]} Nc6 {[%emt 0:01:21]} 20. a3 {[%emt 0:02:56]} Na5 {[%emt 0:01:50]} 21. Qc3 {[%emt 0:06:14]} Qb6 {[%emt 0:00:28]} 22. b4 {[%emt 0:01:16]} cxb4 {[%emt 0:01:05]} 23. axb4 {[%emt 0:04:30]} Nxc4 {[%emt 0:02:28]} 24. Rxd8+ {[%emt 0:01:01]} Rxd8 {[%emt 0:00:21]} 25. Qxc4 {[%emt 0:02:43]} Qxe3+ {[%emt 0:00:10]} 26. Kb2 {[%emt 0:00:07]} Qf2+ {[%emt 0:00:25]} 27. Ka3 {[%emt 0:03:43]} Qxg2 {[%emt 0:00:27]} 28. Ne5 {[%emt 0:01:26]} Qxh1 {[%emt 0:02:09]} 29. Qc7 {[%emt 0:01:02]} Qh3+ {[%emt 0:00:55]} 30. Ka4 {[%emt 0:00:10]} b5+ {[%emt 0:00:32]} 31. Kxb5 {[%emt 0:00:41]} Qf1+ {[%emt 0:01:34]} 32. Ka4 {[%emt 0:00:25]} Qa1+ {[%emt 0:00:45]} 33. Kb3 {[%emt 0:00:25]} Qd1+ {[%emt 0:01:04]} 34. Ka3 {[%emt 0:00:08]} Qd6 {[%emt 0:00:38]} 35. Qc3 {[%emt 0:00:49]} a5 {[%emt 0:01:02]} 36. Nc6 {[%emt 0:00:25]} Qd3 {[%emt 0:01:03]} 37. Ne7+ {[%emt 0:00:22]} Kh7 {[%emt 0:00:09]} 0-1